[Event "Belt Road Women 2019"]
[Site "Shaoxing"]
[Date "2019.07.16"]
[Round "8.17"]
[White "Zhang, Yuxuan"]
[Black "Zhou, Yafei"]
[Result "1-0"]
[ECO "C07"]
[WhiteElo "1987"]
[BlackElo "1720"]
[Annotator "NA RC"]
[PlyCount "91"]
[EventDate "2019.07.08"]
[EventType "swiss"]
[EventCountry "CHN"]
[SourceTitle "playchess.com"]
[Source "ChessBase"]
[SourceQuality "1"]
[TimeControl "5400+30"]

1. e4 {[%emt 0:00:00]} e6 {[%emt 0:00:00]} 2. d4 {[%emt 0:00:00]} d5 {[%emt 0:00:00]} 3. Nd2 {[%emt 0:00:00]} c5 {[%emt 0:00:00]} 4. exd5 {[%emt 0:00:00]} Qxd5 {[%emt 0:00:00]} 5. dxc5 {[%emt 0:00:00]} Bxc5 {[%emt 0:00:05]} 6. Ngf3 {[%emt 0:00:05]} Nf6 {[%emt 0:00:21]} 7. Bc4 {[%emt 0:00:06]} Qc6 {[%emt 0:00:46]} 8. O-O {[%emt 0:00:45]} O-O {[%emt 0:01:16]} 9. Qe2 {[%emt 0:00:12]} a6 {[%emt 0:03:47]} 10. a4 {[%emt 0:00:55]} Nbd7 {[%emt 0:00:55]} 11. b3 {[%emt 0:02:17]} b6 {[%emt 0:06:31]} 12. Bb2 {[%emt 0:02:27]} Bb7 {[%emt 0:00:53]} 13. Bd3 {[%emt 0:01:12]} Rfe8 {[%emt 0:07:32]} 14. Nc4 {[%emt 0:01:49]} e5 {[%emt 0:10:20]} 15. Bf5 {[%emt 0:00:31]} e4 {[%emt 0:05:57]} 16. Nfe5 {[%emt 0:01:03]} Nxe5 {[%emt 0:02:40]} 17. Nxe5 {[%emt 0:00:10]} Qc7 {[%emt 0:00:47]} 18. Ng4 {[%emt 0:05:36]} Nxg4 {[%emt 0:11:18]} 19. Qxg4 {[%emt 0:00:14]} Bf8 {[%emt 0:01:25]} 20. Qh4 {[%emt 0:03:59]} h6 {[%emt 0:00:53]} 21. c4 {[%emt 0:02:06]} Qe7 {[%emt 0:01:34]} 22. Qg3 {[%emt 0:01:25]} Qg5 {[%emt 0:02:45]} 23. Qxg5 {[%emt 0:02:32]} hxg5 {[%emt 0:00:07]} 24. Rad1 {[%emt 0:00:46]} Rad8 {[%emt 0:00:25]} 25. Bc1 {[%emt 0:00:35]} Rxd1 {[%emt 0:05:27]} 26. Rxd1 {[%emt 0:00:06]} Re5 {[%emt 0:00:21]} 27. g4 {[%emt 0:04:43]} g6 {[%emt 0:01:55]} 28. Bd7 {[%emt 0:00:28]} Bg7 {[%emt 0:06:45]} 29. Be3 {[%emt 0:00:37]} f5 {[%emt 0:11:07]} 30. Bxb6 {[%emt 0:01:16]} f4 {[%emt 0:00:14]} 31. Bd4 {[%emt 0:00:54]} e3 {[%emt 0:10:03]} 32. Bxe5 {[%emt 0:00:09]} Bxe5 {[%emt 0:00:05]} 33. fxe3 {[%emt 0:00:14]} fxe3 {[%emt 0:00:29]} 34. Be6+ {[%emt 0:00:52]} Kf8 {[%emt 0:02:06]} 35. Rd8+ {[%emt 0:00:35]} Ke7 {[%emt 0:00:48]} 36. Rd7+ {[%emt 0:00:05]} Kxe6 {[%emt 0:00:08]} 37. Rxb7 {[%emt 0:00:04]} Bd4 {[%emt 0:01:48]} 38. Kf1 {[%emt 0:00:06]} Ke5 {[%emt 0:00:14]} 39. Rf7 {[%emt 0:00:44]} Ke4 {[%emt 0:00:22]} 40. Ke2 {[%emt 0:00:05]} Bc5 {[%emt 0:00:41]} 41. Rc7 {[%emt 0:00:14]} Bd4 {[%emt 0:00:31]} 42. c5 {[%emt 0:00:10]} Kd5 {[%emt 0:00:12]} 43. b4 {[%emt 0:00:31]} Kc4 {[%emt 0:02:37]} 44. Rd7 {[%emt 0:00:13]} Be5 {[%emt 0:01:19]} 45. c6 {[%emt 0:00:06]} Kxb4 {[%emt 0:00:40]} 46. c7 {[%emt 0:00:05]} 1-0

[Event "Belt Road Women 2019"]
[Site "Shaoxing"]
[Date "2019.07.17"]
[Round "9.7"]
[White "Munkhzul, Turmunkh"]
[Black "Khademalsharieh, Sarasadat"]
[Result "1/2-1/2"]
[ECO "C22"]
[WhiteElo "2386"]
[BlackElo "2481"]
[Annotator "RC"]
[PlyCount "126"]
[EventDate "2019.07.08"]
[EventType "swiss"]
[EventCountry "CHN"]
[SourceTitle "playchess.com"]
[Source "ChessBase"]
[SourceQuality "1"]
[TimeControl "5400+30"]

1. e4 {[%emt 0:00:00]} e5 {[%emt 0:00:00]} 2. d4 {[%emt 0:00:00]} exd4 {[%emt 0:00:00]} 3. Qxd4 {[%emt 0:00:00]} Nc6 {[%emt 0:00:19]} 4. Qe3 {[%emt 0:00:10]} Nf6 {[%emt 0:00:29]} 5. Bd2 {[%emt 0:00:22]} Bb4 {[%emt 0:04:26]} 6. a3 {[%emt 0:00:50]} Bxd2+ {[%emt 0:00:38]} 7. Nxd2 {[%emt 0:00:08]} O-O {[%emt 0:00:04]} 8. O-O-O {[%emt 0:01:00]} Re8 {[%emt 0:02:58]} 9. f3 {[%emt 0:11:50]} d5 {[%emt 0:07:41]} 10. g4 {[%emt 0:16:17]} dxe4 {[%emt 0:03:41]} 11. Nxe4 {[%emt 0:00:29]} Bd7 {[%emt 0:00:08]} 12. Nh3 {[%emt 0:05:22]} Nxe4 {[%emt 0:08:55]} 13. fxe4 {[%emt 0:00:07]} Qe7 {[%emt 0:00:05]} 14. Nf2 {[%emt 0:00:22]} Ne5 {[%emt 0:00:04]} 15. g5 {[%emt 0:05:50]} b5 {[%emt 0:00:45]} 16. h4 {[%emt 0:02:36]} a5 {[%emt 0:08:02]} 17. h5 {[%emt 0:07:29]} b4 {[%emt 0:01:42]} 18. a4 {[%emt 0:02:45]} Bxa4 {[%emt 0:10:41]} 19. h6 {[%emt 0:00:23]} g6 {[%emt 0:01:51]} 20. Rd5 {[%emt 0:01:53]} Bd7 {[%emt 0:01:10]} 21. Nd3 {[%emt 0:05:39]} Nxd3+ {[%emt 0:05:17]} 22. Bxd3 {[%emt 0:00:32]} Be6 {[%emt 0:00:58]} 23. Qd4 {[%emt 0:01:34]} Qf8 {[%emt 0:00:07]} 24. Rc5 {[%emt 0:00:47]} Rad8 {[%emt 0:03:36]} 25. Qf2 {[%emt 0:04:20]} a4 {[%emt 0:01:37]} 26. Kb1 {[%emt 0:07:18]} a3 {[%emt 0:02:50]} 27. Bb5 {[%emt 0:09:37]} Qd6 {[%emt 0:00:22]} 28. b3 {[%emt 0:01:02]} Rf8 {[%emt 0:01:01]} 29. e5 {[%emt 0:07:19]} Qd4 {[%emt 0:00:11]} 30. Qxd4 {[%emt 0:00:05]} Rxd4 {[%emt 0:00:04]} 31. Rxc7 {[%emt 0:01:30]} Rg4 {[%emt 0:10:55]} 32. Bd7 {[%emt 0:04:23]} Bxd7 {[%emt 0:00:37]} 33. Rxd7 {[%emt 0:00:05]} Rxg5 {[%emt 0:00:04]} 34. e6 {[%emt 0:00:28]} fxe6 {[%emt 0:00:04]} 35. Rg7+ {[%emt 0:00:06]} Kh8 {[%emt 0:00:03]} 36. Re7 {[%emt 0:00:12]} e5 {[%emt 0:00:35]} 37. Rh4 {[%emt 0:00:33]} Rg1+ {[%emt 0:05:23]} 38. Ka2 {[%emt 0:00:05]} Rg2 {[%emt 0:00:14]} 39. Rc7 {[%emt 0:01:27]} Rg8 {[%emt 0:00:16]} 40. Rxb4 {[%emt 0:00:10]} Rh2 {[%emt 0:00:04]} 41. Kxa3 {[%emt 0:00:11]} Rxh6 {[%emt 0:00:05]} 42. Re7 {[%emt 0:00:09]} g5 {[%emt 0:00:23]} 43. Rg4 {[%emt 0:00:34]} Ra6+ {[%emt 0:00:53]} 44. Kb4 {[%emt 0:01:34]} h5 {[%emt 0:00:06]} 45. Rg1 {[%emt 0:00:13]} h4 {[%emt 0:01:12]} 46. Rxe5 {[%emt 0:00:05]} Rag6 {[%emt 0:00:07]} 47. c4 {[%emt 0:01:11]} h3 {[%emt 0:00:13]} 48. c5 {[%emt 0:00:30]} g4 {[%emt 0:00:24]} 49. Rh5+ {[%emt 0:00:27]} Kg7 {[%emt 0:00:05]} 50. c6 {[%emt 0:00:16]} Rc8 {[%emt 0:00:52]} 51. Rh4 {[%emt 0:00:43]} Rcxc6 {[%emt 0:01:41]} 52. Rgxg4 {[%emt 0:00:14]} Rxg4+ {[%emt 0:00:06]} 53. Rxg4+ {[%emt 0:00:04]} Rg6 {[%emt 0:00:05]} 54. Rh4 {[%emt 0:00:15]} Rh6 {[%emt 0:00:04]} 55. Rg4+ {[%emt 0:00:04]} Kf6 {[%emt 0:00:04]} 56. Rg1 {[%emt 0:00:03]} Kf5 {[%emt 0:00:26]} 57. Kc5 {[%emt 0:00:14]} h2 {[%emt 0:01:28]} 58. Rh1 {[%emt 0:00:07]} Kf4 {[%emt 0:00:03]} 59. b4 {[%emt 0:00:04]} Kg3 {[%emt 0:00:04]} 60. b5 {[%emt 0:00:05]} Kg2 {[%emt 0:00:11]} 61. Rxh2+ {[%emt 0:00:04]} Rxh2 {[%emt 0:00:18]} 62. b6 {[%emt 0:00:07]} Kf3 {[%emt 0:00:03]} 63. b7 {[%emt 0:00:05]} Rb2 {[%emt 0:00:05]} 1/2-1/2

[Event "Belt Road Women 2019"]
[Site "Shaoxing"]
[Date "2019.07.17"]
[Round "9.13"]
[White "Tokhirjonova, Gulrukhbegim"]
[Black "Fominykh, Maria"]
[Result "1-0"]
[ECO "C41"]
[WhiteElo "2422"]
[BlackElo "2243"]
[Annotator "RC"]
[PlyCount "68"]
[EventDate "2019.07.08"]
[EventType "swiss"]
[EventCountry "CHN"]
[SourceTitle "playchess.com"]
[Source "ChessBase"]
[SourceQuality "1"]
[TimeControl "5400+30"]

1. e4 {[%emt 0:00:00]} d6 {[%emt 0:00:00]} 2. d4 {[%emt 0:00:00]} Nf6 {[%emt 0:00:00]} 3. Nc3 {[%emt 0:00:00]} Nbd7 {[%emt 0:00:00]} 4. Nf3 {[%emt 0:01:15]} e5 {[%emt 0:00:02]} 5. Bc4 {[%emt 0:05:35]} Be7 {[%emt 0:00:04]} 6. O-O {[%emt 0:00:29]} O-O {[%emt 0:00:10]} 7. a4 {[%emt 0:00:23]} c6 {[%emt 0:00:06]} 8. Re1 {[%emt 0:00:34]} a5 {[%emt 0:02:53]} 9. h3 {[%emt 0:00:30]} Nb6 {[%emt 0:00:06]} 10. Ba2 {[%emt 0:01:52]} Nfd7 {[%emt 0:00:05]} 11. Be3 {[%emt 0:02:30]} exd4 {[%emt 0:00:05]} 12. Nxd4 {[%emt 0:00:14]} Nc5 {[%emt 0:02:09]} 13. Qd2 {[%emt 0:06:57]} Kh8 {[%emt 0:22:52]} 14. Bb3 {[%emt 0:24:29]} Nxb3 {[%emt 0:02:35]} 15. Nxb3 {[%emt 0:00:13]} Nc4 {[%emt 0:00:33]} 16. Qe2 {[%emt 0:01:31]} Nxe3 {[%emt 0:00:43]} 17. Qxe3 {[%emt 0:00:04]} Qc7 {[%emt 0:15:32]} 18. Rad1 {[%emt 0:00:15]} Bd7 {[%emt 0:07:25]} 19. Nd4 {[%emt 0:04:52]} Rae8 {[%emt 0:15:45]} 20. Qd3 {[%emt 0:02:13]} Qb6 {[%emt 0:03:09]} 21. b3 {[%emt 0:00:15]} Bc8 {[%emt 0:01:57]} 22. Nb1 {[%emt 0:03:50]} Bf6 {[%emt 0:05:41]} 23. Nf3 {[%emt 0:03:37]} Rd8 {[%emt 0:01:38]} 24. c4 {[%emt 0:00:41]} Be6 {[%emt 0:00:39]} 25. Nbd2 {[%emt 0:00:22]} d5 {[%emt 0:01:59]} 26. cxd5 {[%emt 0:00:33]} cxd5 {[%emt 0:00:09]} 27. e5 {[%emt 0:00:04]} Be7 {[%emt 0:00:09]} 28. Nd4 {[%emt 0:00:10]} Bc5 {[%emt 0:01:32]} 29. N2f3 {[%emt 0:00:21]} h6 {[%emt 0:00:57]} 30. Re2 {[%emt 0:03:57]} Rc8 {[%emt 0:04:12]} 31. Rc2 {[%emt 0:03:10]} Bd7 {[%emt 0:01:56]} 32. Rdc1 {[%emt 0:07:06]} Kg8 {[%emt 0:00:28]} 33. Kh1 {[%emt 0:01:38]} Ba3 {[%emt 0:01:45]} 34. Re1 {[%emt 0:03:21]} Bc5 {[%emt 0:05:07]} 1-0

[Event "Belt Road Women 2019"]
[Site "Shaoxing"]
[Date "2019.07.17"]
[Round "9.14"]
[White "Yan, Tianqi"]
[Black "Bai, Xue"]
[Result "0-1"]
[ECO "E04"]
[WhiteElo "2034"]
[BlackElo "2029"]
[Annotator "NA RC"]
[PlyCount "122"]
[EventDate "2019.07.08"]
[EventType "swiss"]
[EventCountry "CHN"]
[SourceTitle "playchess.com"]
[Source "ChessBase"]
[SourceQuality "1"]
[TimeControl "5400+30"]

{[%evp 23,111,13,19,27,20,32767,32767,32767,32767,32767,32767,32767,32767,32767,32767,32767,32767,-78,-85,-90,-87,-84,-78,-77,-81,-81,-81,-68,-85,-78,-85,32767,-66,-91,-77,-89,-83,32767,-58,-55,-53,-58,-58,-58,-54,-64,-65,-60,-59,-79,-85,-86,-71,-95,-79,32767,32767,-111,-78,-109,-118,-113,32767,32767,32767,32767,32767,32767,32767,32767,32767,32767,32767,32767,32767,32767,32767,32767,0,-191,-170,-216,-235,-403,-237,-223,-229,32767,32767,-339]} 1. c4 {[%emt 0:01:20]} e6 {[%emt 0:00:00]} 2. Nf3 {[%emt 0:00:16]} Nf6 {[%emt 0:00:03]} 3. g3 {[%emt 0:00:13]} d5 {[%emt 0:00:38]} 4. Bg2 {[%emt 0:00:51]} c5 {[%emt 0:00:57]} 5. O-O {[%emt 0:04:52]} Nc6 {[%emt 0:00:24]} 6. d4 {[%emt 0:02:55]} dxc4 {[%emt 0:00:40]} 7. dxc5 {[%emt 0:00:10]} Qxd1 {[%emt 0:00:08]} 8. Rxd1 {[%emt 0:00:03]} Bxc5 {[%emt 0:00:08]} 9. Nbd2 {[%emt 0:00:16]} c3 {[%emt 0:00:08]} 10. bxc3 {[%emt 0:00:04]} O-O {[%emt 0:00:06]} 11. Nb3 {[%emt 0:00:37]} Be7 {[%emt 0:00:05]} 12. Nfd4 {[%emt 0:02:48]} Bd7 {[%emt 0:00:32]} 13. Bg5 {[%emt 0:02:08] E04: Open Catalan: 5 Nf3} (13. Nxc6 Bxc6 14. Bxc6 bxc6 15. c4 Rfb8 16. Bd2 Rb6 17. Rac1 c5 18. Be3 Rc6 19. Rc2 Kf8 20. f3 Ke8 {½-½ (52) So,W (2780)-Vidit,S (2718) chess.com INT 2018}) 13... Rac8 {[%emt 0:11:22]} 14. Bxf6 {[%emt 0:07:03]} Bxf6 {[%emt 0:01:49]} 15. Nc5 {[%emt 0:05:52]} Nxd4 {[%emt 0:00:05]} 16. cxd4 {[%emt 0:00:19]} Bb5 {[%emt 0:00:07]} 17. Bxb7 {[%emt 0:03:34]} Bxe2 {[%emt 0:00:25]} 18. Re1 $146 {[%emt 0:05:09]} ({Predecessor:} 18. Bxc8 Bxd1 19. Bxe6 Bf3 20. Bh3 Bxd4 {0-1 (49) Sriram,J (2446)-Kotanjian,T (2517) Beirut 2011}) 18... Rc7 {[%emt 0:02:11]} 19. Rxe2 {[%emt 0:04:13]} Bxd4 {[%emt 0:00:13]} 20. Rd1 {[%emt 0:02:35]} (20. Nxe6 $1 $11 {keeps the balance.} fxe6 21. Rb1) 20... Bxc5 {[%emt 0:00:10]} 21. Be4 {[%emt 0:00:33]} Bb6 {[%emt 0:04:18]} 22. Rc2 {[%emt 0:01:18]} Rxc2 {[%emt 0:00:30]} 23. Bxc2 {[%emt 0:00:04]} g6 {[%emt 0:02:10]} 24. Bb3 {[%emt 0:00:49]} Kg7 {[%emt 0:00:27]} 25. Kg2 {[%emt 0:00:10]} Rc8 {[%emt 0:00:20]} 26. Rd7 {[%emt 0:01:50]} Kf6 {[%emt 0:00:16]} 27. f3 {[%emt 0:05:59]} Rc1 {[%emt 0:03:56]} 28. Rd1 {[%emt 0:00:47]} Rc7 {[%emt 0:03:09]} 29. Rd2 {[%emt 0:00:50]} Ke7 {[%emt 0:00:53]} 30. Ba4 {[%emt 0:01:28]} e5 {[%emt 0:03:23]} 31. Rc2 {[%emt 0:01:38]} Rb7 {[%emt 0:01:04]} 32. Re2 {[%emt 0:01:32]} Bd4 {[%emt 0:01:25]} 33. f4 {[%emt 0:00:32]} f6 {[%emt 0:00:08]} 34. fxe5 {[%emt 0:01:06]} Bxe5 {[%emt 0:00:19]} 35. Rd2 {[%emt 0:00:12]} h5 {[%emt 0:00:45]} 36. h3 {[%emt 0:01:15]} a5 {[%emt 0:06:56]} 37. Bd1 {[%emt 0:03:03]} Rb4 {[%emt 0:02:52]} 38. a4 {[%emt 0:02:37]} Ke6 {[%emt 0:02:30]} 39. Kf3 {[%emt 0:01:29]} f5 {[%emt 0:00:37]} 40. Kg2 {[%emt 0:03:08]} Kf6 {[%emt 0:01:11]} 41. Kf3 {[%emt 0:00:43]} Re4 {[%emt 0:06:13]} 42. Rd3 {[%emt 0:03:59]} h4 {[%emt 0:02:23]} 43. g4 {[%emt 0:04:26]} Rf4+ {[%emt 0:00:24]} 44. Kg2 {[%emt 0:00:36]} fxg4 {[%emt 0:00:07]} 45. hxg4 {[%emt 0:01:47]} Re4 {[%emt 0:00:31]} 46. Kf3 {[%emt 0:06:06]} Rc4 {[%emt 0:00:12]} 47. Kg2 {[%emt 0:00:19]} Kg5 {[%emt 0:02:41]} 48. Kh3 {[%emt 0:01:57]} Re4 {[%emt 0:02:19]} 49. Kg2 {[%emt 0:00:49]} Rb4 {[%emt 0:00:49]} 50. Rd2 {[%emt 0:01:19]} Re4 $2 {[%emt 0:04:30]} (50... Kf6 $19 51. Rf2+ Bf4) 51. Rd3 $1 {[%emt 0:00:05]} Re1 {[%emt 0:03:10]} 52. Bf3 {[%emt 0:00:51]} Ra1 {[%emt 0:01:34]} 53. Bd1 $2 {[%emt 0:00:22] [#]} (53. Bc6 {was the only chance.}) 53... Ra2+ {[%emt 0:00:14]} (53... h3+ $142 $1 {[%mdl 512]} 54. Kg1 (54. Rxh3 Rxd1) 54... Kh4) 54. Kf1 {[%emt 0:00:50]} Bg3 $19 {[%emt 0:01:41]} 55. Kg1 {[%emt 0:01:20]} Kf4 {[%emt 0:01:22]} 56. Kh1 {[%emt 0:02:43]} (56. Rf3+ {is a better defense.} Ke4 57. Rf1) 56... Ke4 {[%emt 0:14:40]} 57. Rf3 {[%emt 0:00:30]} Ra1 {[%emt 0:00:30]} 58. Rf1 {[%emt 0:00:30]} Ke3 {[%emt 0:00:30]} 59. Kg1 {[%emt 0:00:30]} g5 {[%emt 0:00:30]} 60. Kg2 {[%emt 0:00:30]} Kd3 {[%emt 0:00:30]} 61. Be2+ {[%emt 0:00:00] Rxa4} Kd4 {[%emt 0:00:30]} 0-1

[Event "Belt Road Women 2019"]
[Site "Shaoxing"]
[Date "2019.07.17"]
[Round "9.15"]
[White "Hu, Yu A."]
[Black "Zhang, Yuxuan"]
[Result "0-1"]
[ECO "B80"]
[WhiteElo "2095"]
[BlackElo "1987"]
[Annotator "NA RC"]
[PlyCount "124"]
[EventDate "2019.07.08"]
[EventType "swiss"]
[EventCountry "CHN"]
[SourceTitle "playchess.com"]
[Source "ChessBase"]
[SourceQuality "1"]
[TimeControl "5400+30"]

1. e4 {[%emt 0:00:00]} c5 {[%emt 0:00:00]} 2. Nf3 {[%emt 0:00:36]} e6 {[%emt 0:00:00]} 3. d4 {[%emt 0:00:07]} cxd4 {[%emt 0:00:00]} 4. Nxd4 {[%emt 0:00:06]} Nc6 {[%emt 0:00:00]} 5. Nc3 {[%emt 0:00:10]} a6 {[%emt 0:00:00]} 6. g3 {[%emt 0:00:47]} d6 {[%emt 0:00:17]} 7. Bg2 {[%emt 0:00:18]} Bd7 {[%emt 0:00:16]} 8. O-O {[%emt 0:01:02]} Nf6 {[%emt 0:00:54]} 9. Nce2 {[%emt 0:00:25]} Be7 {[%emt 0:04:22] B80: Sicilian Scheveningen: 6 g3 and 6 Be3, including English Attack} 10. c4 {[%emt 0:00:29]} Ne5 $146 {[%emt 0:00:17]} ({Predecessor:} 10... O-O 11. a4 Qa5 12. b3 Rfd8 13. Bd2 Qc5 14. Be3 Qa5 15. h3 Rac8 16. Qe1 Qxe1 17. Rfxe1 Nb4 18. Red1 g6 {½-½ (65) Svidler,P (2732)-Rublevsky,S (2676) Khanty-Mansiysk 2007}) 11. b3 $1 {[%emt 0:05:54]} O-O {[%emt 0:00:37]} 12. Bb2 {[%emt 0:07:27]} Qb6 {[%emt 0:04:18]} (12... b5 $11) 13. Qd2 {[%emt 0:00:46]} Rfd8 {[%emt 0:00:58]} 14. Kh1 {[%emt 0:02:49]} Ng6 {[%emt 0:01:02]} 15. f4 {[%emt 0:02:35]} e5 {[%emt 0:11:41]} 16. Nf5 {[%emt 0:01:16]} Bf8 {[%emt 0:00:15]} 17. fxe5 {[%emt 0:11:47]} dxe5 {[%emt 0:02:57]} 18. Qg5 {[%emt 0:00:12]} h6 {[%emt 0:16:54]} 19. Nxh6+ {[%emt 0:02:33]} gxh6 {[%emt 0:00:13]} 20. Qxf6 {[%emt 0:00:04]} Qxf6 {[%emt 0:00:08]} 21. Rxf6 {[%emt 0:00:05]} Bg4 {[%emt 0:00:05]} 22. Ng1 {[%emt 0:00:42]} Rd2 {[%emt 0:00:10]} 23. Bc3 {[%emt 0:00:40]} Rc2 {[%emt 0:00:18]} 24. Ba5 {[%emt 0:00:21]} Be7 {[%emt 0:02:11]} 25. Rff1 {[%emt 0:07:49]} Bc5 {[%emt 0:00:19]} 26. Rfc1 {[%emt 0:01:00]} Rf2 {[%emt 0:00:15]} 27. h3 {[%emt 0:00:47]} Be6 {[%emt 0:00:53]} 28. Be1 {[%emt 0:01:58]} Rb2 {[%emt 0:01:27]} 29. Bc3 {[%emt 0:02:16]} Rf2 {[%emt 0:00:07]} 30. a4 {[%emt 0:09:55]} Bd4 {[%emt 0:05:53]} 31. Bxd4 {[%emt 0:00:47]} exd4 {[%emt 0:00:05]} 32. Rf1 {[%emt 0:01:16]} Rc2 {[%emt 0:00:19]} 33. Nf3 {[%emt 0:01:16]} Rd8 {[%emt 0:00:09]} 34. Rfd1 {[%emt 0:00:20]} d3 {[%emt 0:00:24]} 35. Rd2 {[%emt 0:00:12]} Rc3 {[%emt 0:00:12]} 36. Rb1 {[%emt 0:02:16]} Ne7 {[%emt 0:03:15]} 37. Bf1 {[%emt 0:02:03]} Nc6 {[%emt 0:00:14]} 38. Kg2 {[%emt 0:01:23]} Na5 {[%emt 0:06:30]} 39. Ne1 {[%emt 0:05:26]} Nxb3 {[%emt 0:02:45]} 40. Rxd3 {[%emt 0:00:03]} Rdxd3 {[%emt 0:00:13]} 41. Bxd3 {[%emt 0:00:06]} Nc5 {[%emt 0:00:04]} 42. Bc2 {[%emt 0:00:58]} Bxc4 {[%emt 0:02:25]} 43. Kf2 {[%emt 0:00:03]} b5 {[%emt 0:02:36]} 44. axb5 {[%emt 0:00:56]} axb5 {[%emt 0:00:15]} 45. e5 {[%emt 0:00:12]} Nd7 {[%emt 0:01:32]} 46. Be4 {[%emt 0:01:24]} Nxe5 {[%emt 0:00:21]} 47. Nf3 {[%emt 0:00:28]} Nxf3 {[%emt 0:02:22]} 48. Bxf3 {[%emt 0:00:04]} Rb3 {[%emt 0:00:13]} 49. Rd1 {[%emt 0:05:03]} b4 {[%emt 0:02:00]} 50. Rd8+ {[%emt 0:00:25]} Kg7 {[%emt 0:00:11]} 51. Rb8 {[%emt 0:00:05]} Rb2+ {[%emt 0:00:09]} 52. Ke3 {[%emt 0:00:05]} b3 {[%emt 0:00:19]} 53. Kd4 {[%emt 0:00:31]} Be6 {[%emt 0:01:10]} 54. h4 {[%emt 0:02:06]} f5 {[%emt 0:01:08]} (54... Kf6 $17 55. Rb6 Ra2) 55. Ke5 {[%emt 0:00:23]} Bc4 {[%emt 0:04:53]} 56. Bh5 {[%emt 0:01:30]} Rd2 {[%emt 0:00:44]} 57. Rb7+ {[%emt 0:00:06]} Kf8 {[%emt 0:00:22]} 58. Rb8+ {[%emt 0:00:08]} Ke7 {[%emt 0:01:10]} 59. Re8+ {[%emt 0:00:03]} Kd7 {[%emt 0:00:07]} 60. Rb8 {[%emt 0:00:35]} b2 {[%emt 0:00:29]} 61. Bg6 $19 {[%emt 0:00:13]} Rd5+ {[%emt 0:00:45]} 62. Kf6 Bb5 {[%emt 0:00:30]} 0-1

[Event "Belt Road Women 2019"]
[Site "Shaoxing"]
[Date "2019.07.17"]
[Round "9.16"]
[White "Peng, Tianlu"]
[Black "Du, Yuxin"]
[Result "1/2-1/2"]
[ECO "A14"]
[WhiteElo "1901"]
[BlackElo "2015"]
[Annotator "NA RC"]
[PlyCount "89"]
[EventDate "2019.07.08"]
[EventType "swiss"]
[EventCountry "CHN"]
[SourceTitle "playchess.com"]
[Source "ChessBase"]
[SourceQuality "1"]
[TimeControl "5400+30"]

1. Nf3 {[%emt 0:00:00]} Nf6 {[%emt 0:00:38]} 2. g3 {[%emt 0:00:00]} e6 {[%emt 0:04:09]} 3. Bg2 {[%emt 0:00:00]} d5 {[%emt 0:00:06]} 4. c4 {[%emt 0:00:04]} (4. O-O Be7 5. d3 O-O 6. c4 c6 7. Nbd2 Nbd7 8. b3 b6 {½-½ (10) Espinosa Veloz,E (2544)-Miranda Mesa,E (2438) Santa Clara 2018}) 4... Nbd7 {[%emt 0:04:47]} 5. b3 {[%emt 0:00:50]} c6 {[%emt 0:01:45]} 6. Bb2 {[%emt 0:00:55]} Be7 {[%emt 0:01:32]} 7. O-O {[%emt 0:01:22]} O-O {[%emt 0:01:18]} 8. d3 {[%emt 0:02:19]} b6 {[%emt 0:01:24]} 9. Nbd2 {[%emt 0:03:03]} Bb7 {[%emt 0:02:08]} 10. Rc1 {[%emt 0:02:00]} dxc4 {[%emt 0:08:47] A14: English Opening: 1...e6 with b3 by White} 11. bxc4 $146 {[%emt 0:02:18]} ({Predecessor:} 11. Nxc4 c5 12. Rc2 Rc8 13. Qa1 Qc7 14. Nce5 Nxe5 15. Bxe5 Qd7 16. Nh4 Ne8 17. Nf3 Bf6 18. Rd2 Bxe5 19. Nxe5 {½-½ (43) Quass,M (1853)-Woellermann,L (1805) Verden 2013}) 11... c5 {[%emt 0:04:30]} 12. Qc2 {[%emt 0:06:24]} Qc7 {[%emt 0:02:50]} 13. Rfe1 {[%emt 0:07:57]} Rfd8 {[%emt 0:04:15]} 14. Qc3 {[%emt 0:06:14]} Rac8 {[%emt 0:06:40]} 15. e4 {[%emt 0:11:55]} Nb8 {[%emt 0:18:34]} 16. Ne5 {[%emt 0:04:21]} Nc6 {[%emt 0:01:16]} 17. Nxc6 {[%emt 0:02:11]} Bxc6 {[%emt 0:01:14]} 18. Nf3 {[%emt 0:01:21]} Ne8 {[%emt 0:02:14]} 19. Qc2 {[%emt 0:07:32]} Nf6 {[%emt 0:16:38]} 20. Ne5 {[%emt 0:03:19]} Be8 {[%emt 0:01:49]} 21. Qc3 {[%emt 0:02:33]} Bf8 {[%emt 0:01:43]} 22. Re3 {[%emt 0:05:52]} Nd7 {[%emt 0:02:18]} 23. Ng4 {[%emt 0:03:50]} h5 {[%emt 0:03:53]} 24. Ne5 {[%emt 0:05:18]} Nxe5 {[%emt 0:00:08]} 25. Qxe5 {[%emt 0:00:06]} Qxe5 {[%emt 0:00:04]} 26. Bxe5 {[%emt 0:00:08]} g6 {[%emt 0:01:17]} 27. f4 {[%emt 0:02:36]} Bg7 {[%emt 0:00:48]} 28. Bxg7 {[%emt 0:00:36]} Kxg7 {[%emt 0:00:04]} 29. e5 {[%emt 0:00:33]} Bc6 {[%emt 0:01:36]} 30. Bxc6 {[%emt 0:00:14]} Rxc6 {[%emt 0:00:04]} 31. Kf2 {[%emt 0:00:11]} Rc7 {[%emt 0:00:18]} 32. Ke2 {[%emt 0:00:44]} Rd4 {[%emt 0:00:28]} 33. Kd2 {[%emt 0:14:24]} Rcd7 {[%emt 0:00:30]} 34. Kc3 {[%emt 0:00:30]} h4 {[%emt 0:00:30]} 35. a4 {[%emt 0:00:30]} hxg3 {[%emt 0:00:30]} 36. hxg3 {[%emt 0:00:30]} g5 {[%emt 0:00:30]} 37. Rf1 {[%emt 0:00:30]} Kg6 {[%emt 0:00:30]} 38. Ref3 {[%emt 0:00:30]} gxf4 {[%emt 0:00:30]} 39. gxf4 {[%emt 0:00:30]} Kf5 {[%emt 0:00:30]} 40. Kc2 {[%emt 0:00:30]} Rd8 {[%emt 0:00:30]} 41. Rh3 {[%emt 0:00:30]} Rxf4 {[%emt 0:00:30]} 42. Rh5+ $11 {[%emt 0:00:30]} Kg4 {[%emt 0:00:30]} 43. Rh4+ {[%emt 0:00:30]} Kxh4 {[%emt 0:00:30]} 44. Rxf4+ {[%emt 0:00:30]} Kg5 {[%emt 0:00:30]} 45. Rxf7 {[%emt 0:00:30]} 1/2-1/2